bitfinex/quotes_BTCUSD_20251202
["timestamp","ask_amount","ask_price","bid_price","bid_amount"]
[1764679590234,0.08675006,87480.0,87479.0,0.0586]
[1764679590444,0.31537374,87480.0,87479.0,0.0586]
[1764679590910,0.31437374,87480.0,87479.0,0.03252]
[1764679591117,0.08575006,87480.0,87479.0,0.0596]
[1764679591303,0.31437374,87480.0,87479.0,0.0596]
[1764679592131,0.08575006,87480.0,87479.0,0.28822629]
[1764679592585,2.0,87487.0,87485.0,0.22861052]
[1764679592795,0.24003235,87489.0,87485.0,0.22861052]
[1764679592796,0.01143,87489.0,87487.0,0.03128]
[1764679592969,0.01143,87489.0,87488.0,0.04466]
[1764679593144,0.24003051,87489.0,87488.0,0.04466]
[1764679593463,2.0,87493.0,87490.0,0.01142987]
[1764679593609,2.0,87493.0,87489.0,0.01143]
[1764679593610,0.22863514,87493.0,87492.0,0.01848]
[1764679594020,0.22863514,87493.0,87492.0,0.04466]
[1764679611707,0.22859232,87492.0,87491.0,0.0131]
[1764679611913,0.22860277,87488.0,87487.0,0.0128]
[1764679612167,0.01147329,87493.0,87473.0,0.0131]
[1764679612168,0.22863936,87474.0,87473.0,0.0131]
[1764679612389,0.22863936,87474.0,87473.0,0.03125]
[1764679612654,0.2286472,87471.0,87470.0,0.0131]
[1764679612817,0.2286472,87471.0,87459.0,0.0131]
[1764679612818,0.22867073,87462.0,87459.0,0.0131]
[1764679613017,0.22867596,87460.0,87459.0,0.0131]
[1764679614024,0.22867596,87460.0,87459.0,0.03129388]
[1764679614780,0.22867596,87460.0,87459.0,0.01314388]
[1764679615153,0.22867596,87460.0,87459.0,4.388e-05]
[1764679615376,0.22867596,87460.0,87459.0,0.00204388]
[1764679616152,0.22867596,87460.0,87459.0,4.388e-05]
[1764679619740,0.22967596,87460.0,87459.0,4.388e-05]
[1764679620782,0.23067596,87460.0,87459.0,4.388e-05]
[1764679621344,0.24377596,87460.0,87459.0,4.388e-05]
[1764679623632,0.09428805,87460.0,87459.0,4.388e-05]
[1764679623912,0.11718805,87460.0,87459.0,4.388e-05]
[1764679626204,0.09428805,87460.0,87459.0,4.388e-05]
[1764679626750,0.11718805,87460.0,87459.0,4.388e-05]
[1764679627056,0.09428805,87460.0,87459.0,4.388e-05]
[1764679627493,0.11718805,87460.0,87459.0,4.388e-05]
[1764679628051,0.09428805,87460.0,87459.0,4.388e-05]
[1764679629187,0.09428805,87460.0,87459.0,0.01295388]
[1764679629590,0.09633279,87460.0,87459.0,0.01295388]
[1764679629988,0.09633279,87460.0,87459.0,4.388e-05]
[1764679630208,0.11923279,87460.0,87459.0,4.388e-05]
[1764679630673,2.11923279,87460.0,87459.0,4.388e-05]
[1764679633266,2.61998174,87460.0,87459.0,4.388e-05]
[1764679633517,2.644549,87460.0,87459.0,4.388e-05]
[1764679634055,2.642549,87460.0,87459.0,4.388e-05]
[1764679634270,2.6818811,87460.0,87459.0,4.388e-05]
[1764679634472,2.6828811,87460.0,87459.0,4.388e-05]
[1764679634994,2.646549,87460.0,87459.0,4.388e-05]
[1764679635749,2.53132304,87460.0,87459.0,4.388e-05]
[1764679639202,2.50842304,87460.0,87459.0,4.388e-05]
[1764679639377,2.53132304,87460.0,87459.0,4.388e-05]
[1764679639928,2.54940304,87460.0,87459.0,4.388e-05]
[1764679641410,2.5802639,87460.0,87459.0,4.388e-05]
[1764679642092,2.63445391,87460.0,87459.0,4.388e-05]
[1764679642313,2.63445391,87460.0,87441.0,0.01291]
[1764679642314,0.22872303,87442.0,87441.0,0.01291]
[1764679642558,0.31447309,87442.0,87441.0,0.01291]
[1764679642975,0.33969309,87442.0,87441.0,0.01291]
[1764679643630,0.01143589,87444.0,87441.0,0.05508]
[1764679643956,0.01143589,87444.0,87443.0,0.01695]
[1764679644285,0.32589851,87446.0,87443.0,0.01695]
[1764679644461,0.32589851,87446.0,87445.0,0.02986]
[1764679645146,0.32589851,87446.0,87445.0,0.05508]
[1764679646432,0.08575006,87446.0,87445.0,0.05508]
[1764679646948,0.31446263,87446.0,87445.0,0.05508]
[1764679647624,0.08575006,87446.0,87445.0,0.05508]
[1764679648671,0.31446263,87446.0,87445.0,0.05508]
[1764679648869,0.31446263,87446.0,87445.0,0.02986]
[1764679649069,0.31606973,87446.0,87445.0,0.05508]
[1764679650328,0.08735716,87446.0,87445.0,0.05508]
[1764679650631,0.08735716,87446.0,87445.0,0.28379519]
[1764679650971,0.0016071,87446.0,87445.0,0.28379519]
[1764679652879,0.0016071,87446.0,87445.0,0.28679519]
[1764679654941,0.0016071,87446.0,87445.0,0.05808]
[1764679655140,0.23031967,87446.0,87445.0,0.01591]
[1764679656163,0.22872303,87442.0,87441.0,0.01291]
[1764679656374,0.22872565,87441.0,87440.0,0.0002]
[1764679656567,0.27630035,87441.0,87440.0,0.0002]
[1764679656770,0.42785841,87441.0,87440.0,0.0002]
[1764679657006,0.39152631,87441.0,87440.0,0.0002]
[1764679658461,2.39252631,87441.0,87440.0,0.0002]
[1764679660656,2.39352631,87441.0,87440.0,0.0002]
[1764679661257,2.25540035,87441.0,87440.0,0.0002]
[1764679661460,2.27348035,87441.0,87440.0,0.0002]
[1764679661720,0.22875181,87431.0,87430.0,1.14e-06]
[1764679662280,0.33844396,87433.0,87430.0,1.14e-06]
[1764679662574,0.22875181,87431.0,87430.0,8.423e-05]
[1764679663137,0.22875181,87431.0,87430.0,0.00108423]
[1764679666673,0.25165181,87431.0,87430.0,0.00108423]
[1764679667024,0.26416181,87431.0,87430.0,0.00108423]
[1764679667359,0.26529986,87431.0,87430.0,8.423e-05]
[1764679670624,0.00113805,87431.0,87430.0,0.04384423]
[1764679671113,0.00113805,87431.0,87430.0,0.27259866]
[1764679671544,0.00113805,87431.0,87430.0,0.04384423]
[1764679671670,0.22988986,87431.0,87430.0,0.04384423]
[1764679672486,0.22988986,87431.0,87430.0,0.04484423]
[1764679673716,0.00113805,87431.0,87430.0,0.27359866]
[1764679678967,0.00113805,87431.0,87430.0,0.00108423]
[1764679678968,0.22988986,87431.0,87430.0,0.00108423]
[1764679679381,0.28661596,87431.0,87430.0,0.00108423]
[1764679679854,0.28661596,87431.0,87430.0,8.423e-05]
[1764679680556,0.28661596,87431.0,87430.0,0.00108423]
[1764679680790,0.34584806,87431.0,87430.0,0.00108423]
[1764679680993,0.32294806,87431.0,87430.0,0.00108423]
[1764679681196,0.34584806,87431.0,87430.0,0.00108423]
[1764679681611,2.37049924,87431.0,87430.0,0.00108423]
[1764679681788,2.69349924,87431.0,87430.0,8.423e-05]
[1764679682648,2.75602223,87431.0,87430.0,8.423e-05]
[1764679682870,2.72169013,87431.0,87430.0,8.423e-05]
[1764679683073,2.75150318,87431.0,87430.0,8.423e-05]
[1764679683202,2.72069013,87431.0,87430.0,8.423e-05]
[1764679683407,2.75250318,87431.0,87430.0,8.423e-05]
[1764679683616,2.69377708,87431.0,87430.0,8.423e-05]
[1764679683809,2.69477708,87431.0,87430.0,8.423e-05]
[1764679684134,2.68995708,87431.0,87430.0,8.423e-05]
[1764679684333,2.61952104,87431.0,87430.0,8.423e-05]
[1764679684585,2.62744302,87431.0,87430.0,8.423e-05]
[1764679684765,2.59662104,87431.0,87430.0,8.423e-05]
[1764679685063,2.59962104,87431.0,87430.0,8.423e-05]
[1764679685268,2.59662104,87431.0,87430.0,8.423e-05]
[1764679685712,2.59862104,87431.0,87430.0,8.423e-05]
[1764679685920,2.59762104,87431.0,87430.0,8.423e-05]
[1764679686128,2.59862104,87431.0,87430.0,8.423e-05]
[1764679687631,2.736747,87431.0,87430.0,8.423e-05]
[1764679688348,2.713847,87431.0,87430.0,8.423e-05]
[1764679688526,2.736747,87431.0,87430.0,8.423e-05]
[1764679689177,2.87665504,87431.0,87430.0,8.423e-05]
[1764679689359,2.83556103,87431.0,87430.0,8.423e-05]
[1764679689560,2.87665504,87431.0,87430.0,8.423e-05]
[1764679689823,2.83556103,87431.0,87430.0,8.423e-05]
[1764679689964,2.84014622,87431.0,87430.0,8.423e-05]
[1764679695545,2.84013157,87431.0,87430.0,8.423e-05]
[1764679699868,2.80384053,87431.0,87430.0,8.423e-05]
[1764679700421,2.80184053,87431.0,87430.0,8.423e-05]
[1764679700838,2.80484053,87431.0,87430.0,8.423e-05]
[1764679701108,2.80384053,87431.0,87430.0,8.423e-05]
[1764679701295,2.80484053,87431.0,87430.0,8.423e-05]
[1764679703312,2.29389829,87431.0,87430.0,8.423e-05]
[1764679703510,2.28119158,87431.0,87430.0,8.423e-05]
[1764679703716,2.25655505,87431.0,87430.0,0.03967423]
[1764679703945,2.25196986,87431.0,87430.0,0.01612423]
[1764679704067,2.24796986,87431.0,87430.0,0.01612423]
[1764679704295,0.24796986,87431.0,87430.0,0.01612423]
[1764679704493,0.24796986,87431.0,87430.0,0.03967423]
[1764679704494,0.24896986,87431.0,87430.0,0.03967423]
[1764679704695,0.00213805,87431.0,87430.0,0.03967423]
[1764679705110,0.00113805,87431.0,87430.0,0.26842866]
[1764679705313,0.00113805,87431.0,87430.0,0.03967423]
[1764679705940,0.00113805,87431.0,87430.0,0.26842866]
[1764679707315,0.00113805,87431.0,87430.0,0.04067423]
[1764679707548,0.00113805,87431.0,87430.0,0.03967423]
[1764679707756,0.22988986,87431.0,87430.0,0.03967423]
[1764679707979,0.22988986,87431.0,87430.0,0.04267423]
[1764679708218,0.22988986,87431.0,87430.0,0.01912423]
[1764679708442,0.22988986,87431.0,87430.0,0.00308423]
[1764679709084,0.22988986,87431.0,87430.0,0.04267423]
[1764679710319,0.00113805,87431.0,87430.0,0.27142866]
[1764679710558,0.00113805,87431.0,87430.0,0.26842866]
[1764679710901,0.00113805,87431.0,87430.0,0.04067423]
[1764679711084,0.00113805,87431.0,87430.0,0.03967423]
[1764679711291,0.22988986,87431.0,87430.0,0.03967423]
[1764679711489,0.22988986,87431.0,87430.0,0.04167423]
[1764679711890,0.00113805,87431.0,87430.0,0.04167423]
[1764679712934,0.22988986,87431.0,87430.0,0.04167423]
[1764679713169,0.00113805,87431.0,87430.0,0.04167423]
[1764679713332,0.00113805,87431.0,87430.0,0.27042866]
[1764679713517,0.00113805,87431.0,87430.0,0.04167423]
[1764679715270,0.22988986,87431.0,87430.0,0.04167423]
[1764679715998,0.22988986,87431.0,87430.0,0.01812423]
[1764679716234,0.22988986,87431.0,87430.0,0.00208423]
[1764679716419,0.31563992,87431.0,87430.0,0.00208423]
[1764679716847,0.31563992,87431.0,87430.0,8.423e-05]
[1764679717065,0.31563992,87431.0,87430.0,0.00208423]
[1764679717388,0.31563992,87431.0,87430.0,8.423e-05]
[1764679717609,0.08575006,87431.0,87430.0,0.00108423]
[1764679717829,0.31450187,87431.0,87430.0,0.00108423]
[1764679718037,0.31450187,87431.0,87430.0,8.423e-05]
[1764679718239,0.31450187,87431.0,87430.0,0.00108423]
[1764679720420,0.01143732,87433.0,87430.0,0.00108423]
[1764679720628,0.08575006,87431.0,87430.0,0.01825423]
[1764679721048,0.22873665,87437.0,87430.0,0.05600195]
[1764679721290,0.24017759,87436.0,87432.0,0.24018418]
[1764679721464,0.24017872,87435.0,87432.0,0.01143745]
[1764679721667,0.09718738,87433.0,87430.0,0.00108423]
[1764679722026,0.08575006,87433.0,87430.0,0.02739423]
[1764679722184,0.08575006,87433.0,87431.0,0.22875127]
[1764679722348,0.08575006,87433.0,87432.0,0.01717]
[1764679722758,0.31449664,87433.0,87432.0,0.01717]
[1764679723397,0.22875181,87431.0,87430.0,8.423e-05]
[1764679724426,0.22875181,87431.0,87430.0,0.00108423]
[1764679725583,0.25165181,87431.0,87430.0,0.00108423]
[1764679726655,0.22875181,87431.0,87430.0,0.00108423]
[1764679730889,0.24016129,87442.0,87430.0,0.04456423]
[1764679731022,0.01168677,87439.0,87437.0,0.01717]
[1764679731213,0.24042272,87439.0,87437.0,0.04348]
[1764679731414,0.2287335,87438.0,87437.0,0.04348]
[1764679731614,0.24042272,87439.0,87437.0,0.04348]
[1764679731823,0.00025023,87439.0,87438.0,0.04348]
[1764679732019,0.00025023,87439.0,87438.0,0.2722135]
[1764679733156,0.00125023,87439.0,87438.0,0.2722135]
[1764679733544,0.00025023,87439.0,87438.0,0.2722135]
[1764679733745,0.00025023,87439.0,87438.0,0.2732135]
[1764679735365,0.00025023,87439.0,87438.0,0.03726623]
[1764679735563,0.22898111,87439.0,87438.0,0.001]
[1764679735771,2.37036209,87439.0,87438.0,0.001]
[1764679735990,0.24020926,87424.0,87419.0,0.02631]
[1764679736167,0.24020926,87424.0,87423.0,0.01717]
[1764679736371,0.0114385,87424.0,87423.0,0.01717]
[1764679736574,0.01143837,87425.0,87423.0,0.01717]
[1764679736768,0.24020623,87425.0,87423.0,0.01717]
[1764679736971,0.32595629,87425.0,87423.0,0.01717]
[1764679737195,0.08575006,87425.0,87423.0,0.01717]
[1764679737389,0.08575006,87425.0,87424.0,0.01717]
[1764679738235,0.31451757,87425.0,87424.0,0.01717]
[1764679739835,0.31451757,87425.0,87424.0,0.01917]
[1764679740053,0.08575006,87425.0,87424.0,0.01917]
[1764679740258,0.01143772,87430.0,87425.0,0.22876504]
[1764679740464,0.09718778,87430.0,87429.0,0.01717]
[1764679741084,0.32594221,87430.0,87429.0,0.01717]
[1764679742886,0.32594221,87430.0,87429.0,0.01817]
[1764679744169,0.32594221,87430.0,87429.0,0.04448]
[1764679744780,0.15121759,87430.0,87429.0,0.04448]
[1764679744974,0.24840537,87430.0,87429.0,0.04448]
[1764679745665,0.24840537,87430.0,87429.0,0.01817]
[1764679745879,0.24840537,87430.0,87429.0,0.001]
[1764679748036,0.24840537,87430.0,87419.0,4.387e-05]
[1764679748037,0.22878059,87420.0,87419.0,4.387e-05]
[1764679748805,0.24021421,87422.0,87419.0,4.387e-05]
[1764679749043,0.22878059,87420.0,87419.0,4.387e-05]
[1764679749459,0.22878059,87420.0,87419.0,0.00204387]
[1764679750475,0.22878016,87421.0,87419.0,0.04551387]
[1764679750755,0.2402068,87425.0,87420.0,0.01742]
[1764679750756,0.22877307,87423.0,87420.0,0.01742]
[1764679750908,0.2402117,87423.0,87419.0,0.24226605]
[1764679751108,0.2402117,87423.0,87420.0,0.02605]
[1764679751315,0.2402117,87423.0,87422.0,0.01742]
[1764679752147,0.01143837,87425.0,87422.0,0.04347]
[1764679752309,0.22877274,87423.0,87422.0,0.04347]
[1764679752747,0.22877151,87424.0,87422.0,0.04347]
[1764679752950,0.22877151,87424.0,87423.0,0.02605]
[1764679753124,0.22877151,87424.0,87423.0,0.04347]
[1764679753351,0.01143798,87428.0,87423.0,0.05490863]
[1764679753546,0.01143811,87427.0,87424.0,0.02605]
[1764679753747,0.2287662,87426.0,87424.0,0.02605]
[1764679754156,0.22876751,87425.0,87424.0,0.02605]
[1764679754597,0.22876751,87425.0,87424.0,0.04347]
[1764679755183,0.24019529,87429.0,87424.0,0.04447]
[1764679755396,0.01143798,87428.0,87425.0,0.02605]
[1764679755912,0.22876455,87427.0,87425.0,0.02605]
[1764679756309,0.24019835,87428.0,87426.0,0.02995]
[1764679756488,0.24019835,87428.0,87427.0,0.01742]
[1764679756694,0.24019835,87428.0,87427.0,0.04347]
[1764679757136,0.24019835,87428.0,87427.0,0.01742]
[1764679757588,0.22876228,87427.0,87426.0,0.01253]
[1764679758003,0.22877619,87422.0,87419.0,4.387e-05]
[1764679758211,0.22877619,87422.0,87419.0,0.22882661]
[1764679758409,0.22877619,87422.0,87421.0,0.01742]
[1764679758786,0.24021195,87423.0,87421.0,0.01742]
[1764679759013,0.01143863,87423.0,87422.0,0.01742]
[1764679759820,0.24021137,87423.0,87422.0,0.04347]
[1764679761209,0.01143837,87425.0,87422.0,0.27224473]
[1764679761415,0.24020776,87425.0,87423.0,0.02605]
[1764679761635,0.24020776,87425.0,87424.0,0.01742]
[1764679762996,0.24020776,87425.0,87424.0,0.04347]
[1764679763667,0.24020776,87425.0,87424.0,0.01742]
[1764679764016,0.24020776,87425.0,87424.0,0.01842]
[1764679764215,0.24020776,87425.0,87424.0,0.001]
[1764679767557,0.2649034,87425.0,87424.0,0.001]
[1764679768415,0.22878059,87420.0,87419.0,4.387e-05]
[1764679770014,0.34400655,87420.0,87419.0,4.387e-05]
[1764679770216,0.39159675,87420.0,87419.0,4.387e-05]
[1764679770589,0.36869675,87420.0,87419.0,4.387e-05]
[1764679770901,0.39159675,87420.0,87419.0,0.00104387]
[1764679771105,0.39159675,87420.0,87419.0,4.387e-05]
[1764679771312,0.39159675,87420.0,87419.0,0.00104387]
[1764679772533,0.36869675,87420.0,87419.0,0.00104387]
[1764679772711,0.27637079,87420.0,87419.0,0.00104387]
[1764679772916,0.25347079,87420.0,87419.0,4.387e-05]
[1764679776301,0.22878059,87420.0,87419.0,4.387e-05]
[1764679778075,0.22878059,87420.0,87419.0,0.04509387]
[1764679778689,0.22878059,87420.0,87419.0,0.01757387]
[1764679779456,0.22878059,87420.0,87419.0,0.01957387]
[1764679779905,0.22878059,87420.0,87419.0,0.00204387]
[1764679780105,0.22878059,87420.0,87419.0,4.387e-05]
[1764679780303,0.22878059,87420.0,87419.0,0.00104387]
[1764679780706,0.276333,87420.0,87419.0,0.00104387]
[1764679780907,2.276333,87420.0,87419.0,0.00104387]
[1764679781131,2.35700301,87420.0,87419.0,0.00104387]
[1764679781329,2.41619405,87420.0,87419.0,0.00104387]
[1764679781651,2.37990301,87420.0,87419.0,0.00104387]
[1764679782598,2.37990301,87420.0,87419.0,4.387e-05]
[1764679782785,2.38090301,87420.0,87419.0,4.387e-05]
[1764679783267,2.37990301,87420.0,87419.0,4.387e-05]
[1764679783464,2.38090301,87420.0,87419.0,4.387e-05]
[1764679783696,2.38190301,87420.0,87419.0,4.387e-05]
[1764679784614,2.35900301,87420.0,87419.0,4.387e-05]
[1764679784826,2.38190301,87420.0,87419.0,4.387e-05]
[1764679785876,2.273513,87420.0,87419.0,4.387e-05]
[1764679786226,2.30790402,87420.0,87419.0,4.387e-05]
[1764679786872,2.33080402,87420.0,87419.0,4.387e-05]
[1764679787592,2.30790402,87420.0,87419.0,4.387e-05]
[1764679789798,2.33080402,87420.0,87419.0,4.387e-05]
[1764679790296,2.30790402,87420.0,87419.0,4.387e-05]
[1764679790499,2.273513,87420.0,87419.0,4.387e-05]
[1764679796434,2.301033,87420.0,87419.0,4.387e-05]
[1764679798910,2.273513,87420.0,87419.0,4.387e-05]
[1764679801765,2.296413,87420.0,87419.0,4.387e-05]
[1764679802707,0.02665241,87420.0,87419.0,0.04509387]
[1764679802901,0.02665241,87420.0,87419.0,0.29677708]
[1764679802902,0.002,87420.0,87419.0,0.29677708]
[1764679803118,0.02466933,87438.0,87435.0,0.240176]
[1764679803289,2.0,87438.0,87434.0,0.24018078]
[1764679803497,2.0,87438.0,87437.0,0.03069]
[1764679803703,2.0,87438.0,87437.0,0.05821]
[1764679804083,2.0,87438.0,87437.0,0.28694611]
[1764679804280,0.00025023,87439.0,87437.0,0.28694611]
[1764679804532,0.00025023,87439.0,87438.0,0.04505]
[1764679805029,0.00025023,87439.0,87438.0,0.2737835]
[1764679806228,0.00025023,87439.0,87438.0,0.2747835]
[1764679807935,0.00025023,87439.0,87438.0,0.04605]
[1764679808541,0.00025023,87439.0,87438.0,0.2747835]
[1764679809173,0.00025023,87439.0,87438.0,0.04605]
[1764679809767,0.00025023,87439.0,87438.0,0.2871735]
[1764679812494,0.00025023,87439.0,87438.0,0.03092]
[1764679812698,0.00025023,87439.0,87438.0,0.05511]
[1764679814166,0.00025023,87439.0,87438.0,0.2838435]
[1764679815409,0.00025023,87439.0,87438.0,0.2828435]
[1764679815771,0.00025023,87439.0,87438.0,0.3087435]
[1764679816658,0.00025023,87439.0,87438.0,0.2858435]
[1764679816806,0.00025023,87439.0,87438.0,0.3087435]
[1764679817715,0.00025023,87439.0,87438.0,0.3097435]
[1764679817913,0.08256769,87457.0,87456.0,0.02821]
[1764679818118,0.01143484,87452.0,87450.0,0.01239]
[1764679818327,0.2286995,87451.0,87450.0,0.01239]
[1764679818693,0.24013204,87452.0,87450.0,0.02821]
[1764679819008,0.2286995,87451.0,87450.0,0.02821]
[1764679819523,0.24013204,87452.0,87450.0,0.02921]
[1764679819709,0.2286995,87451.0,87450.0,0.02821]
[1764679820951,0.240129,87453.0,87450.0,0.02821]
[1764679821147,0.22869798,87452.0,87450.0,0.02821]
[1764679821483,0.240129,87453.0,87450.0,0.02821]
[1764679821667,0.22869926,87452.0,87450.0,0.02821]
[1764679821967,0.2286995,87451.0,87450.0,0.02821]
[1764679823923,0.22869926,87452.0,87450.0,0.0524]
[1764679824221,0.00037529,87451.0,87450.0,0.0524]
[1764679824851,0.00037529,87451.0,87450.0,0.28110211]
[1764679826863,0.00037529,87451.0,87450.0,0.28210211]
[1764679832564,0.00037529,87451.0,87450.0,0.30018211]
[1764679833187,0.00037529,87451.0,87450.0,0.0534]
[1764679833388,0.22907479,87451.0,87450.0,0.0534]
[1764679833624,0.22907479,87451.0,87450.0,0.02921]
[1764679834628,0.22907479,87451.0,87450.0,0.02821]
[1764679834821,0.22907479,87451.0,87450.0,0.05375]
[1764679835056,0.22907479,87451.0,87450.0,0.02921]
[1764679835258,0.22907479,87451.0,87450.0,0.001]
[1764679836204,0.22871257,87446.0,87445.0,0.0134]
[1764679836646,0.22871257,87446.0,87445.0,0.05595]
[1764679836845,0.22871257,87446.0,87445.0,0.02913]
[1764679837100,0.05231809,87446.0,87445.0,0.02913]
[1764679837664,0.05231809,87446.0,87445.0,0.05595]
[1764679838280,0.01143484,87452.0,87445.0,0.05695]
[1764679838529,0.22870996,87447.0,87446.0,0.01623]
[1764679838985,0.22870812,87448.0,87446.0,0.04305]
[1764679839206,0.22870812,87448.0,87447.0,0.01623]
[1764679840033,0.22870812,87448.0,87447.0,0.04305]
[1764679840710,0.22870812,87448.0,87447.0,0.01623]
[1764679840923,0.31445818,87448.0,87447.0,0.01623]
[1764679841542,0.31445818,87448.0,87447.0,0.01723]
[1764679842088,0.08575006,87448.0,87447.0,0.01723]
[1764679842315,0.3144574,87448.0,87447.0,0.01723]
[1764679842886,0.3144574,87448.0,87447.0,0.04405]
[1764679843515,0.3144574,87448.0,87447.0,0.01723]
[1764679843923,0.31473887,87448.0,87447.0,0.01723]
[1764679848146,0.08603153,87448.0,87447.0,0.04405]
[1764679848347,0.31473887,87448.0,87447.0,0.04405]
[1764679848953,0.08603153,87448.0,87447.0,0.04405]
[1764679849442,0.31473887,87448.0,87447.0,0.04405]
[1764679850076,0.31398127,87448.0,87447.0,0.04405]
[1764679851635,0.08527393,87448.0,87447.0,0.04405]
[1764679851969,0.31398127,87448.0,87447.0,0.04405]
[1764679852176,0.16581892,87448.0,87447.0,0.04405]
[1764679852384,0.08575006,87448.0,87447.0,0.02782]
[1764679852805,0.08575006,87448.0,87447.0,0.04405]
[1764679856416,0.08575006,87448.0,87447.0,0.01723]
[1764679856629,0.3144574,87448.0,87447.0,0.01723]
[1764679857250,0.24013721,87450.0,87447.0,0.001]
[1764679857461,2.0,87456.0,87453.0,0.01143471]
[1764679857678,2.0,87456.0,87455.0,0.22868904]
[1764679857853,0.22866504,87465.0,87456.0,0.24491642]
[1764679858067,0.2286663,87464.0,87456.0,0.27173642]
[1764679858273,0.00380443,87457.0,87456.0,0.27173642]
[1764679860235,0.00480443,87457.0,87456.0,0.27173642]
[1764679860450,0.00380443,87457.0,87456.0,0.27173642]
[1764679865960,0.00380443,87457.0,87456.0,0.27273642]
[1764679866330,0.00380443,87457.0,87456.0,0.27173642]
[1764679866533,0.00380443,87457.0,87456.0,0.27273642]
[1764679868734,0.00380443,87457.0,87456.0,0.29563642]
[1764679868935,0.00380443,87457.0,87456.0,0.27273642]
[1764679869531,0.00380443,87457.0,87456.0,0.29081642]
[1764679869762,0.00380443,87457.0,87456.0,0.61381642]
[1764679869935,0.00380443,87457.0,87456.0,0.63671642]
[1764679870626,0.00380443,87457.0,87456.0,0.61381642]
[1764679870829,0.00380443,87457.0,87456.0,0.63671642]
[1764679878343,0.00380443,87457.0,87456.0,0.001]
[1764679878522,0.25976274,87457.0,87456.0,0.001]
[1764679878754,0.23422824,87457.0,87456.0,0.001]
[1764679879578,0.22871142,87447.0,87442.0,0.25249819]
[1764679879728,0.22871257,87446.0,87442.0,0.01234]
[1764679880311,0.22872042,87443.0,87442.0,0.01234]
[1764679882707,0.22872042,87443.0,87442.0,0.01334]
[1764679884825,0.22872042,87443.0,87437.0,0.03188]
[1764679884826,0.22874658,87433.0,87390.0,0.0002]
[1764679885109,2.55185651,87391.0,87390.0,0.0002]
[1764679885347,2.55185651,87391.0,87390.0,0.02084]
[1764679885348,2.57001651,87391.0,87390.0,0.02084]
[1764679885574,2.34116,87391.0,87390.0,0.02084]
[1764679886026,2.34116,87391.0,87390.0,0.0002]
[1764679886226,2.34316,87391.0,87390.0,0.0002]
[1764679886432,2.34316,87391.0,87390.0,0.00024387]
[1764679886639,2.38516741,87391.0,87390.0,0.00024387]
[1764679886842,2.38316741,87391.0,87390.0,0.00024387]
[1764679887046,2.34116,87391.0,87390.0,0.00024387]
[1764679887286,2.60713897,87391.0,87390.0,0.00024387]
[1764679887510,2.56503602,87391.0,87390.0,0.00024387]
[1764679887687,2.42691006,87391.0,87390.0,0.00024387]
[1764679888034,2.44981006,87391.0,87390.0,0.00024387]
[1764679888641,2.45181006,87391.0,87390.0,0.00024387]
[1764679890284,2.42891006,87391.0,87390.0,0.00024387]
[1764679890513,2.56703602,87391.0,87390.0,0.00024387]
[1764679890902,2.56703602,87391.0,87390.0,0.00115163]
[1764679891103,2.54413602,87391.0,87390.0,0.00115163]
[1764679891429,2.56703602,87391.0,87390.0,0.00115163]
[1764679893252,2.42891006,87391.0,87390.0,0.00115163]
[1764679893871,2.45181006,87391.0,87390.0,0.00115163]
[1764679895236,2.46758006,87391.0,87390.0,0.00115163]
[1764679897952,2.42652006,87391.0,87390.0,0.00115163]
[1764679898151,2.44472006,87391.0,87390.0,0.00115163]
[1764679898563,2.41075006,87391.0,87390.0,0.00115163]
[1764679898758,2.42891006,87391.0,87390.0,0.00115163]
[1764679900693,2.45181006,87391.0,87390.0,0.00115163]
[1764679901230,2.54413602,87391.0,87390.0,0.00115163]
[1764679901445,2.22387619,87391.0,87390.0,0.00115163]
[1764679902604,2.4527327,87391.0,87390.0,0.00115163]
[1764679903214,2.47704525,87391.0,87390.0,0.00115163]
[1764679905288,2.50781642,87391.0,87390.0,0.00115163]
[1764679906135,2.47704525,87391.0,87390.0,0.00115163]
[1764679906539,2.45888525,87391.0,87390.0,0.00115163]
[1764679906739,2.47704525,87391.0,87390.0,0.00115163]
[1764679906941,2.45888525,87391.0,87390.0,0.02271163]
[1764679907255,2.47704525,87391.0,87390.0,0.05600163]
[1764679907470,2.47704525,87391.0,87390.0,0.02271163]
[1764679907882,2.47704525,87391.0,87390.0,0.00115163]
[1764679911446,2.34683574,87386.0,87385.0,0.01679]
[1764679911647,2.37114829,87386.0,87385.0,0.01700217]
[1764679911895,2.37114829,87386.0,87385.0,0.07185217]
[1764679913325,2.04814829,87386.0,87385.0,0.07185217]
[1764679913693,2.04914829,87386.0,87385.0,0.07185217]
[1764679915950,2.04914829,87386.0,87385.0,0.07135217]
[1764679917124,1.82027868,87386.0,87385.0,0.07135217]
[1764679917324,2.11070782,87386.0,87385.0,0.07135217]
[1764679920616,0.08687208,87386.0,87385.0,0.07135217]
[1764679920875,0.02531255,87386.0,87385.0,0.3002244]
[1764679921231,0.25418216,87386.0,87385.0,0.07135217]
[1764679921630,0.31574169,87386.0,87385.0,0.07135217]
[1764679923405,0.25418216,87386.0,87385.0,0.07135217]
[1764679923936,0.02531255,87386.0,87385.0,0.3002244]
[1764679924508,0.02531255,87386.0,87385.0,0.3231244]
[1764679925422,0.05606615,87386.0,87385.0,0.3231244]
[1764679925997,0.02531255,87386.0,87385.0,0.3231244]
[1764679926199,0.02531255,87386.0,87385.0,0.3002244]
[1764679926398,0.02531255,87386.0,87385.0,0.3231244]
[1764679927140,0.05606374,87386.0,87385.0,0.3231244]
[1764679928194,0.02531255,87386.0,87385.0,0.3231244]
[1764679929646,0.02559229,87386.0,87385.0,0.3231244]
[1764679933181,0.001,87386.0,87385.0,0.3231244]
[1764679937633,0.001,87386.0,87385.0,0.40380739]
[1764679938011,0.00999999,87400.0,87399.0,0.22883557]
[1764679938219,0.01999998,87410.0,87409.0,0.22880939]
[1764679938571,0.01999998,87410.0,87409.0,0.30204939]
[1764679938743,0.00999999,87410.0,87409.0,0.30204939]
[1764679939684,0.01099999,87410.0,87409.0,0.30204939]
[1764679940047,0.00999999,87410.0,87409.0,0.30204939]
[1764679940574,0.401149,87415.0,87412.0,0.22880098]
[1764679940775,0.323,87415.0,87414.0,0.02141]
[1764679941360,0.323,87415.0,87414.0,0.0561]
[1764679941684,0.323,87415.0,87414.0,0.05631217]
[1764679941913,0.323,87415.0,87414.0,0.28510802]
[1764679942041,0.324,87415.0,87414.0,0.28510802]
[1764679942247,0.323,87415.0,87414.0,0.28510802]
[1764679942659,0.325,87415.0,87414.0,0.28510802]
[1764679943546,0.002,87415.0,87414.0,0.28510802]
[1764679945889,0.002,87415.0,87414.0,0.05631217]
[1764679946567,0.002,87415.0,87414.0,0.28510847]
[1764679948480,0.08575006,87418.0,87416.0,0.22878901]
[1764679948679,0.08575006,87418.0,87417.0,0.03855]
[1764679948889,0.08575006,87418.0,87417.0,0.07324]
[1764679949106,0.31453589,87418.0,87417.0,0.07324]
[1764679949779,0.31453589,87418.0,87417.0,0.03855]